bitfinex/quotes_SOLUSD_20240811
["timestamp","ask_amount","ask_price","bid_price","bid_amount"]
[1723420316977,5.649,141.62,141.58,7.3604556]
[1723420317269,5.648,141.65,141.58,5.6505]
[1723420317470,5.648,141.65,141.59,5.6499]
[1723420317672,23.48,141.64,141.58,14.126]
[1723420318177,23.48,141.64,141.59,5.6501]
[1723420318765,29.1282,141.64,141.58,14.126]
[1723420319365,29.1282,141.64,141.58,19.7764]
[1723420319871,29.1282,141.64,141.59,5.65]
[1723420320284,23.48,141.64,141.58,14.126]
[1723420320581,29.1281,141.64,141.59,5.65]
[1723420320953,23.48,141.64,141.59,5.65]
[1723420321353,23.48,141.64,141.6,5.6496]
[1723420321656,23.48,141.66,141.61,5.6492]
[1723420322063,23.48,141.66,141.62,5.6489]
[1723420322477,23.48,141.66,141.58,14.126]
[1723420322657,23.48,141.64,141.58,14.126]
[1723420322860,5.6486,141.63,141.58,19.7764]
[1723420323248,29.1281,141.64,141.59,5.6501]
[1723420323448,23.48,141.64,141.59,5.6501]
[1723420325957,23.48,141.64,141.6,5.6495]
[1723420326787,45.4357,141.68,141.61,5.6491]
[1723420326788,23.48,141.66,141.61,5.6491]
[1723420327151,23.48,141.66,141.62,5.6489]
[1723420327353,45.4357,141.68,141.62,5.6489]
[1723420327768,5.6469,141.67,141.62,5.6489]
[1723420328165,51.0822,141.68,141.63,5.6483]
[1723420329892,23.48,141.7,141.63,14.1212]
[1723420330093,23.48,141.7,141.66,14.1182]
[1723420330261,44.5672,141.72,141.66,14.1182]
[1723420330462,15.4423,141.72,141.68,5.6464]
[1723420331188,44.5672,141.72,141.67,5.6467]
[1723420332489,23.48,141.72,141.69,5.6461]
[1723420332662,23.48,141.74,141.71,5.6453]
[1723420332863,23.48,141.74,141.7,5.6456]
[1723420333091,29.1242,141.74,141.68,19.7615]
[1723420333386,5.6446,141.73,141.68,19.7615]
[1723420333570,23.48,141.74,141.7,5.6457]
[1723420335185,23.047,141.75,141.7,5.6457]
[1723420335567,386.6433,141.76,141.71,5.6452]
[1723420335979,37.2044,141.79,141.69,0.12549]
[1723420335980,5.6428,141.78,141.69,0.12549]
[1723420336194,23.0982,141.79,141.72,5.6448]
[1723420336377,5.6433,141.77,141.71,5.6452]
[1723420336580,5.6435,141.76,141.71,5.6452]
[1723420337782,23.0982,141.79,141.7,14.1133]
[1723420338102,5.6449,141.72,141.67,19.7641]
[1723420338984,5.6453,141.71,141.67,14.1172]
[1723420339172,29.1257,141.7,141.65,21.6479]
[1723420339493,29.1257,141.7,141.65,5.6476]
[1723420339804,23.48,141.7,141.66,5.6472]
[1723420339994,23.48,141.7,141.67,5.6468]
[1723420340173,5.6453,141.72,141.67,5.6468]
[1723420340174,29.1253,141.72,141.67,5.6468]
[1723420341077,23.48,141.72,141.68,5.6463]
[1723420342774,5.6446,141.73,141.68,5.6463]
[1723420343295,5.645,141.72,141.67,5.77229]
[1723420343980,5.6453,141.71,141.66,14.1176]
[1723420344180,5.6457,141.7,141.66,14.1176]
[1723420345081,5.6453,141.71,141.66,19.7648]
[1723420346201,23.48,141.72,141.66,14.1176]
[1723420346526,27.4086,141.73,141.68,5.6464]
[1723420346726,5.6449,141.72,141.68,5.6464]
[1723420347720,27.4086,141.73,141.68,5.6464]
[1723420348298,27.4086,141.73,141.66,14.1176]
[1723420348515,27.4086,141.73,141.68,5.6464]
[1723420348719,21.764,141.73,141.67,5.6468]
[1723420348907,5.6453,141.71,141.66,14.1176]
[1723420349109,5.6453,141.71,141.66,19.7647]
[1723420351022,5.6453,141.71,141.67,5.6468]
[1723420351229,27.4088,141.73,141.67,5.6468]
[1723420352909,27.4088,141.73,141.68,5.6464]
[1723420353110,50.8888,141.73,141.68,5.6464]
[1723420354126,14.1089,141.76,141.69,5.6459]
[1723420354127,5.6442,141.74,141.69,5.6459]
[1723420354424,30.4804,141.76,141.7,1.41147786]
[1723420354425,22.0149,141.76,141.7,1.41147786]
[1723420354636,22.0149,141.76,141.71,1.4111424]
[1723420354920,22.0149,141.76,141.7,0.12549]
[1723420355104,22.0149,141.76,141.7,1.53660833]
[1723420355299,5.6426,141.78,141.74,5.6441]
[1723420355519,5.6426,141.78,141.7,1.53660833]
[1723420355727,5.6426,141.78,141.73,19.7557]
[1723420356104,15.4692,141.8,141.75,14.1085]
[1723420356295,5.6414,141.81,141.76,5.6433]
[1723420357324,5.6414,141.81,141.75,14.1085]
[1723420357325,5.641,141.82,141.77,5.6428]
[1723420357722,5.6414,141.81,141.77,5.6428]
[1723420358300,5.6414,141.81,141.76,5.6432]
[1723420358532,5.6418,141.8,141.76,5.6432]
[1723420358731,14.1022,141.83,141.7,15.3399]
[1723420358923,5.6417,141.8,141.76,5.6432]
[1723420359241,5.6417,141.8,141.74,14.1097]
[1723420359404,5.6417,141.8,141.75,5.6436]
[1723420359609,5.6422,141.79,141.75,5.6436]
[1723420360411,5.6418,141.8,141.75,5.6436]
[1723420362429,5.6422,141.79,141.75,5.6436]
[1723420362729,5.6417,141.8,141.75,5.6436]
[1723420363243,29.1213,141.81,141.76,5.6431]
[1723420364421,5.6418,141.8,141.76,5.6431]
[1723420364605,5.6418,141.8,141.75,5.6436]
[1723420364810,5.6421,141.79,141.74,19.7537]
[1723420365012,29.1221,141.79,141.74,19.7537]
[1723420365235,29.1221,141.79,141.75,5.6436]
[1723420365542,23.48,141.79,141.75,5.6436]
[1723420366426,23.48,141.79,141.74,14.1097]
[1723420366427,29.1214,141.81,141.76,5.6429]
[1723420367412,5.6418,141.8,141.76,5.6429]
[1723420367625,5.6418,141.8,141.75,5.6437]
[1723420368435,5.6422,141.79,141.75,5.6437]
[1723420369223,5.6417,141.8,141.75,5.6437]
[1723420369534,29.1213,141.81,141.76,5.643]
[1723420369739,23.48,141.81,141.77,5.6428]
[1723420369909,5.641,141.82,141.77,5.6428]
[1723420369910,23.48,141.83,141.77,1.41060632]
[1723420370240,21.1093,141.84,141.78,15.51616961]
[1723420370543,21.1093,141.84,141.79,5.642]
[1723420370719,5.6401,141.84,141.79,5.642]
[1723420370921,35.2165,141.85,141.8,5.6416]
[1723420371125,5.6394,141.86,141.8,14.1037]
[1723420371443,23.48,141.87,141.83,5.6402]
[1723420372224,29.1182,141.89,141.84,5.6401]
[1723420372435,5.6382,141.89,141.84,5.64]
[1723420372645,5.6385,141.88,141.84,5.64]
[1723420373943,5.639,141.87,141.82,14.1018]
[1723420374151,29.1193,141.86,141.82,14.1018]
[1723420376345,5.639,141.87,141.82,14.1018]
[1723420376548,29.119,141.87,141.82,14.1018]
[1723420376848,29.119,141.87,141.82,19.7426]
[1723420379752,23.48,141.87,141.83,5.6403]
[1723420380131,23.48,141.87,141.82,14.1018]
[1723420380132,23.48,141.87,141.84,5.64]
[1723420380327,29.1182,141.89,141.84,5.64]
[1723420380544,29.1182,141.89,141.85,5.6397]
[1723420381053,23.48,141.89,141.85,5.6397]
[1723420381430,5.6378,141.9,141.86,5.6392]
[1723420382051,5.6366,141.93,141.88,5.6384]
[1723420382528,5.637,141.92,141.88,5.6384]
[1723420382932,23.48,141.94,141.87,1.40949403]
[1723420383137,5.6357,141.95,141.9,5.6375]
[1723420384054,5.6357,141.95,141.91,5.6373]
[1723420384556,29.1154,141.96,141.92,5.6369]
[1723420384956,23.48,141.96,141.92,5.6366]
[1723420385166,5.635,141.97,141.92,5.6366]
[1723420385342,29.115,141.97,141.92,5.6366]
[1723420385536,5.6354,141.96,141.92,5.6366]
[1723420385869,29.1158,141.95,141.9,14.0938]
[1723420386455,23.48,141.95,141.91,5.6373]
[1723420386637,29.1152,141.97,141.92,5.6367]
[1723420387238,19.44211221,141.99,141.93,1.40902515]
[1723420387451,42.92211221,141.99,141.92,14.0917]
[1723420387666,48.55631221,141.99,141.94,5.636]
[1723420388256,5.6346,141.98,141.93,5.6365]
[1723420388439,5.6349,141.97,141.92,19.7286]
[1723420388967,5.6346,141.98,141.93,5.6364]
[1723420390336,42.92211221,141.99,141.92,19.7286]
[1723420390337,5.635,141.97,141.92,19.7286]
[1723420390562,29.115,141.97,141.92,19.7286]
[1723420391265,29.115,141.97,141.93,5.6365]
[1723420391863,23.48,141.97,141.94,5.636]
[1723420392042,23.48,141.97,141.93,5.6365]
[1723420392464,23.48,141.97,141.92,19.7285]
[1723420393471,5.635,141.97,141.92,19.7285]
[1723420393670,29.1146,141.98,141.93,5.6365]
[1723420394767,5.635,141.97,141.93,5.6365]
[1723420394969,29.1153,141.96,141.92,19.7286]
[1723420395267,5.6358,141.95,141.89,14.095]
[1723420396178,29.1154,141.96,141.91,5.6373]
[1723420396676,29.1154,141.96,141.92,5.6369]
[1723420396965,23.48,141.96,141.92,5.6369]
[1723420397178,23.48,141.96,141.91,14.0925]
[1723420397373,29.1155,141.96,141.91,14.0925]
[1723420397549,5.6359,141.95,141.91,14.0925]
[1723420397868,23.48,141.96,141.93,5.6365]
[1723420398269,23.48,141.96,141.92,5.6369]
[1723420398467,23.48,141.96,141.91,14.0925]
[1723420398468,29.1154,141.96,141.91,19.7297]
[1723420400582,5.6358,141.95,141.91,19.7297]
[1723420400750,23.48,141.96,141.91,19.7297]
[1723420400958,29.1154,141.96,141.91,19.7297]
[1723420402876,5.6382,141.89,141.83,15.222]
[1723420403084,29.1179,141.9,141.85,5.6397]
[1723420403283,23.48,141.9,141.84,14.0996]
[1723420403461,5.6383,141.89,141.84,19.7397]
[1723420403667,5.639,141.87,141.81,14.1031]
[1723420404182,23.48,141.86,141.81,14.1031]
[1723420404354,23.48,141.84,141.81,14.1031]
[1723420404972,23.48,141.84,141.81,19.744]
[1723420405250,23.48,141.86,141.82,5.6409]
[1723420405457,23.48,141.86,141.83,5.6403]
[1723420406291,23.48,141.86,141.82,5.6408]
[1723420408681,23.48,141.86,141.83,5.6404]
[1723420409273,23.48,141.9,141.84,14.1001]
[1723420409586,23.48,141.9,141.86,5.639]
[1723420410089,16.3302,141.91,141.88,5.6384]
[1723420410596,5.6365,141.93,141.88,19.7341]
[1723420411383,23.48,141.94,141.9,5.6376]
[1723420411896,6.0583,141.97,141.91,7.0464331]
[1723420411897,29.1154,141.96,141.91,7.0464331]
[1723420412589,29.1161,141.94,141.89,5.6378]
[1723420412788,26.0583,141.97,141.87,14.097]
[1723420412964,40.1465,141.97,141.87,19.7359]
[1723420413288,23.48,141.93,141.88,5.6384]
[1723420414715,29.1166,141.93,141.88,5.6384]
[1723420419692,23.48,141.93,141.9,5.6377]
[1723420419989,23.48,141.93,141.87,14.097]
[1723420419990,23.48,141.93,141.89,5.6381]
[1723420420184,23.48,141.93,141.87,14.097]
[1723420420371,29.1167,141.93,141.88,5.6384]
[1723420421008,5.637,141.92,141.87,19.7358]
[1723420423003,5.637,141.92,141.88,5.6384]
[1723420423604,29.1166,141.93,141.88,5.6384]
[1723420424915,23.48,141.91,141.88,5.6384]
[1723420426002,11.7,141.9,141.88,5.6384]
[1723420429222,20.7813,141.93,141.88,5.6384]
[1723420429397,11.7,141.91,141.88,5.6384]
[1723420429599,11.7,141.9,141.88,5.6384]
[1723420429923,20.7813,141.93,141.87,14.097]
[1723420429924,15.1447,141.93,141.87,19.7358]
[1723420430122,15.1447,141.93,141.87,14.097]
[1723420430123,11.7,141.88,141.87,14.097]
[1723420430495,6.515,141.91,141.87,19.7358]
[1723420430719,11.7,141.89,141.87,19.7358]
[1723420432119,11.7,141.89,141.88,5.6385]
[1723420432420,15.1447,141.93,141.91,5.6373]
[1723420432725,26.8447,141.93,141.9,5.6377]
[1723420432894,11.7,141.92,141.9,5.6377]
[1723420433091,11.7,141.92,141.89,19.7327]
[1723420433315,11.7,141.9,141.86,14.0982]
[1723420433504,11.7,141.9,141.88,5.6384]
[1723420433706,11.7,141.91,141.88,5.6384]
[1723420434220,11.7,141.91,141.88,14.0959]
[1723420434428,11.7,141.92,141.9,5.6377]
[1723420434601,15.0529,141.97,141.9,14.0935]
[1723420434798,11.7,141.95,141.92,5.6366]
[1723420435005,20.6879,141.97,141.92,5.6366]
[1723420435212,20.6879,141.97,141.93,5.6365]
[1723420436297,15.0529,141.97,141.93,5.6365]
[1723420437305,11.7,141.96,141.93,5.6365]
[1723420438014,11.7,141.96,141.92,5.6368]
[1723420439027,11.7,141.94,141.9,14.0935]
[1723420439234,5.6358,141.95,141.9,19.7309]
[1723420439757,5.6363,141.94,141.9,14.0935]
[1723420440108,5.6358,141.95,141.9,19.7312]
[1723420440315,11.7,141.92,141.9,14.0935]
[1723420441328,11.7,141.92,141.9,19.7311]
[1723420442001,15.0529,141.97,141.91,5.6373]
[1723420442302,11.7,141.94,141.91,5.6373]
[1723420443118,11.7,141.93,141.9,19.7312]
[1723420444041,11.7,141.93,141.91,5.6372]
[1723420447821,5.6358,141.95,141.91,5.6372]
[1723420448512,5.6358,141.95,141.9,19.7311]
[1723420449005,5.6358,141.95,141.91,5.6373]
[1723420449439,11.7,141.94,141.92,5.6369]
[1723420449750,20.6881,141.97,141.92,5.6369]
[1723420449751,11.7,141.95,141.92,5.6369]
[1723420450109,11.7,141.96,141.92,5.6369]
[1723420450307,32.3881,141.97,141.93,5.6365]
[1723420451346,20.6881,141.97,141.92,5.6368]
[1723420451525,11.7,141.96,141.92,5.6368]
[1723420452250,17.3354,141.96,141.91,5.6373]
[1723420452446,17.3358,141.95,141.91,5.6373]
[1723420453648,11.7,141.95,141.91,5.6373]
[1723420454151,11.7,141.95,141.92,5.6369]
[1723420454364,17.3354,141.96,141.92,5.6369]
[1723420454523,11.7,141.97,141.93,5.6363]
[1723420455537,11.7,141.96,141.93,5.6363]
[1723420456449,11.7,141.96,141.92,19.7285]
[1723420458624,11.7,141.96,141.92,14.0917]
[1723420459432,11.7,141.96,141.92,19.7285]
[1723420459638,11.7,141.94,141.89,0.12549]
[1723420459841,11.7,141.94,141.89,14.22069]
[1723420460146,17.3359,141.95,141.89,25.92069]
[1723420460748,17.3359,141.95,141.9,5.6376]
[1723420461349,17.3353,141.96,141.89,25.92069]
[1723420461661,17.3353,141.96,141.9,0.25098]
[1723420462158,11.7,141.97,141.93,5.6365]
[1723420462532,17.335,141.97,141.93,5.6365]
[1723420463254,11.7,141.97,141.93,5.6365]
[1723420463447,17.3346,141.98,141.93,5.6365]
[1723420463638,5.6346,141.98,141.93,5.6365]
[1723420463844,5.6346,141.98,141.94,5.636]
[1723420463845,17.3346,141.98,141.94,5.636]
[1723420464048,11.7,141.99,141.95,5.6356]
[1723420464428,17.3343,141.99,141.94,5.6361]
[1723420466444,17.3343,141.99,141.95,5.6357]
[1723420466779,5.54191577,142.03,141.98,5.6345]
[1723420467057,17.3331,142.02,141.97,21.13025605]
[1723420467832,17.3331,142.02,141.94,0.25098]
[1723420467833,17.3338,142.0,141.96,5.6353]
[1723420468060,5.6342,141.99,141.95,5.6357]
[1723420468262,11.7,141.98,141.91,29.1301]
[1723420468562,11.7,141.96,141.91,29.1301]
[1723420468731,17.3354,141.96,141.91,34.7673]
[1723420468939,17.3361,141.95,141.91,14.0931]
[1723420469135,11.7,141.95,141.91,19.7303]
[1723420471759,11.7,141.95,141.92,5.6368]
[1723420472059,11.7,141.97,141.93,14.091]
[1723420472273,11.7,141.98,141.95,5.6355]
[1723420472650,11.7,141.98,141.94,5.636]
[1723420472852,16.0585,141.99,141.89,8.76117054]
[1723420472853,11.7,141.95,141.9,19.7314]
[1723420473040,11.7,141.93,141.9,19.7314]
[1723420473240,11.7,141.93,141.91,5.6372]
[1723420473464,11.7,141.93,141.9,14.094]
[1723420473465,11.7,141.94,141.92,5.6369]
[1723420473963,11.7,141.95,141.92,14.0919]
[1723420474138,11.7,141.97,141.92,14.0919]
[1723420474339,16.0585,141.99,141.95,5.6357]
[1723420474562,33.3927,141.99,141.95,5.6357]
[1723420474837,33.3927,141.99,141.92,25.7919]
[1723420474838,17.3346,141.98,141.94,5.6361]
[1723420475145,17.3346,141.98,141.93,5.6365]
[1723420475146,11.7,141.96,141.93,5.6365]
[1723420475638,11.7,141.96,141.92,19.7288]
[1723420475845,11.7,141.95,141.92,14.0919]
[1723420476144,11.7,141.95,141.92,19.7287]
[1723420476348,5.6342,141.99,141.93,0.25098]
[1723420476555,5.6342,141.99,141.94,5.6358]
[1723420476556,11.7,141.98,141.94,5.6358]
[1723420476872,11.7,141.97,141.93,5.6364]
[1723420477074,6.6386,142.0,141.93,5.6364]
[1723420477075,11.7,141.96,141.93,5.6364]
[1723420477272,11.7,141.97,141.94,5.6359]
[1723420477766,11.7,141.97,141.93,5.6365]
[1723420478168,11.7,141.96,141.93,5.6365]
[1723420478379,32.76042938,142.02,141.94,1.4088979]
[1723420478380,15.8904,142.02,141.94,1.4088979]
[1723420478672,11.7,142.0,141.93,11.82549]
[1723420478875,11.7,142.0,141.94,1.40865087]
[1723420479250,11.7,142.0,141.96,19.723]
[1723420479647,11.7,142.0,141.97,5.6349]
[1723420480178,11.7,142.0,141.96,19.723]
[1723420480492,11.7,142.02,141.98,5.6344]
[1723420480777,17.3334,142.01,141.97,5.6349]
[1723420481775,17.3334,142.01,141.96,19.7231]
[1723420481959,5.6334,142.01,141.96,19.7231]
[1723420482481,5.6334,142.01,141.97,5.6349]
[1723420482850,36.7366,142.05,141.97,5.6349]
[1723420483049,11.7,142.0,141.97,5.6349]
[1723420483447,11.7,142.0,141.97,7.04341946]
[1723420484147,11.7,142.0,141.97,5.6349]
[1723420484364,11.7,142.01,141.97,5.6349]
[1723420484678,11.7,142.01,141.98,5.6345]
[1723420485469,11.7,142.01,141.97,5.6349]
[1723420485774,11.7,142.01,141.98,5.6344]
[1723420486150,11.7,142.0,141.97,5.6349]
[1723420487276,5.633,142.02,141.98,5.6344]
[1723420487483,11.7,142.01,141.98,5.6344]
[1723420487957,11.7,142.01,141.97,5.6348]
[1723420489382,11.7,141.99,141.96,14.0878]
[1723420489572,11.7,141.98,141.96,14.0878]
[1723420489874,11.7,141.99,141.96,14.0878]
[1723420490175,11.7,141.99,141.96,19.7231]
[1723420491460,11.7,141.99,141.96,14.0878]
[1723420491989,11.7,141.97,141.94,5.6358]
[1723420492306,11.7,141.98,141.95,5.6357]
[1723420493289,11.7,141.98,141.96,5.6353]
[1723420493871,11.7,141.99,141.96,5.6353]
[1723420494884,11.7,141.98,141.95,14.089]
[1723420495108,11.7,141.97,141.95,14.089]
[1723420495578,11.7,141.97,141.93,5.6365]
[1723420496190,14.55123318,142.03,141.93,5.6365]
[1723420496191,11.7,141.96,141.93,5.6365]
[1723420496380,11.7,141.97,141.93,5.6365]
[1723420496982,11.7,141.97,141.91,35.53877654]
[1723420496983,11.7,141.97,141.94,14.0899]
[1723420497204,11.7,141.98,141.94,14.0899]
[1723420497697,11.7,141.98,141.94,19.7257]
[1723420497901,11.7,141.97,141.94,19.7257]
[1723420498779,11.7,141.97,141.95,5.6356]
[1723420498984,11.7,141.98,141.95,5.6356]
[1723420499405,11.7,141.98,141.94,19.726]
[1723420500786,11.7,141.95,141.91,7.35247654]
[1723420500976,17.3368,141.93,141.91,7.35247654]
[1723420501406,11.7,141.92,141.91,7.35247654]
[1723420501712,5.6362,141.94,141.89,5.638]
[1723420501876,11.7,141.93,141.89,5.638]
[1723420502695,17.3366,141.93,141.89,5.638]
[1723420502885,11.7,141.92,141.88,19.7347]
[1723420503085,5.6385,141.88,141.87,7.35732001]
[1723420503275,5.638,141.9,141.84,5.6397]
[1723420503504,5.6385,141.88,141.84,5.6397]
[1723420504104,25.66652933,141.94,141.86,14.0978]
[1723420504311,28.5634,141.94,141.89,5.638]
[1723420504605,11.7,141.93,141.9,5.6377]
[1723420504906,11.7,141.93,141.88,14.0958]
[1723420504907,11.7,141.93,141.89,5.638]
[1723420505089,11.7,141.93,141.88,14.0958]
[1723420505090,11.7,141.92,141.88,19.7342]
[1723420505300,11.7,141.91,141.88,19.7342]
[1723420505604,11.7,141.9,141.88,19.7342]
[1723420506297,11.7,141.91,141.89,5.6381]
[1723420506503,11.7,141.92,141.89,5.6381]
[1723420506712,28.004,141.94,141.88,14.0958]
[1723420506912,28.004,141.94,141.89,1.40925945]
[1723420507380,16.304,141.94,141.91,5.6373]
[1723420507580,28.004,141.94,141.91,5.6373]
[1723420507879,11.7,141.98,141.92,15.50095855]
[1723420508076,11.7,141.98,141.94,5.6358]
[1723420508694,5.6343,141.99,141.94,5.6358]
[1723420508888,11.7,141.99,141.95,5.6356]
[1723420509403,17.3338,142.0,141.95,5.6356]
[1723420509909,5.6338,142.0,141.95,5.6356]
[1723420510484,5.6342,141.99,141.94,5.636]
[1723420511494,5.6338,142.0,141.95,5.6356]
[1723420511687,23.37,141.99,141.93,0.12549]
[1723420511887,23.37,141.99,141.93,0.37647]
[1723420512814,29.0045,141.99,141.94,5.6361]
[1723420513215,5.6346,141.98,141.94,5.6361]
[1723420513399,29.0042,141.99,141.94,5.6361]
[1723420513888,6.3117,142.02,141.94,5.6361]
[1723420513889,23.37,142.01,141.95,0.12549]
[1723420514493,15.6073,142.03,141.96,14.0879]
[1723420514986,21.2399,142.03,141.98,5.6345]
[1723420515418,21.2399,142.03,141.99,5.6341]
[1723420515590,21.2399,142.03,141.97,5.6346]
[1723420515791,29.0031,142.02,141.97,5.6346]
[1723420516400,29.0031,142.02,141.98,5.6345]
[1723420517510,23.37,142.02,141.98,5.6345]
[1723420517993,29.0023,142.04,141.99,5.634]
[1723420518193,23.37,142.04,141.99,0.12549]
[1723420518518,23.37,142.04,141.99,5.6339]
[1723420518687,29.0023,142.04,141.99,5.6339]
[1723420519317,23.37,142.04,142.0,5.6337]
[1723420519518,23.37,142.04,142.01,5.6333]
[1723420519687,23.37,142.06,142.01,0.12549]
[1723420519891,23.37,142.08,142.03,5.6325]
[1723420520123,5.631,142.07,142.02,5.6329]
[1723420520290,23.37,142.08,142.03,5.6324]
[1723420520291,5.6306,142.08,142.03,5.6324]
[1723420520497,29.0006,142.08,142.03,7.04031099]
[1723420521411,5.6306,142.08,142.03,7.04031099]
[1723420523294,5.6306,142.08,142.04,5.6321]
[1723420523901,15.2076,142.12,142.05,5.6317]
[1723420524103,15.2076,142.12,142.05,7.03931501]
[1723420524104,5.6298,142.1,142.05,7.03931501]
[1723420525510,15.2076,142.12,142.06,5.6313]
[1723420525511,5.6295,142.11,142.06,5.6313]
[1723420526220,5.6299,142.1,142.05,7.03931501]
[1723420526625,5.6295,142.11,142.06,5.6312]
[1723420528901,5.6299,142.1,142.06,5.6312]
[1723420529112,5.6299,142.1,142.05,5.75719]
[1723420529926,11.67,142.08,142.05,5.75719]
[1723420530216,11.67,142.09,142.05,5.75719]
[1723420530408,5.6295,142.11,142.06,0.12549]
[1723420530613,11.67,142.1,142.06,0.12549]
[1723420531110,11.67,142.09,142.06,5.6313]
[1723420531300,11.67,142.09,142.05,5.75719]
[1723420531623,17.3002,142.09,142.05,5.75719]
[1723420531825,17.3002,142.09,142.04,14.0799]
[1723420531826,11.67,142.08,142.04,19.712]
[1723420532228,11.67,142.08,142.04,14.0799]
[1723420532409,6.0248,142.14,142.01,35.3164]
[1723420532410,11.67,142.05,142.01,35.3164]
[1723420532720,5.631,142.07,142.02,5.6327]
[1723420532919,11.67,142.05,142.02,5.6327]
[1723420533106,11.67,142.03,142.01,14.0833]
[1723420533727,11.67,142.02,141.99,5.6341]
[1723420534019,11.67,142.0,141.98,19.7203]
[1723420534232,11.67,141.99,141.98,19.7203]
[1723420534522,11.67,141.99,141.98,14.0859]
[1723420535112,11.67,141.99,141.98,19.7204]
[1723420535630,5.6326,142.03,141.98,19.7204]
[1723420535828,11.67,142.01,141.99,5.6341]
[1723420536127,5.6326,142.03,141.99,5.6341]
[1723420536128,23.37,142.02,141.99,5.6341]
[1723420536632,23.37,142.02,142.0,5.6337]
[1723420537000,23.37,142.02,141.99,5.6341]
[1723420537349,23.37,142.02,141.98,19.7204]
[1723420538125,23.37,142.0,141.98,14.0859]
[1723420539024,23.37,142.0,141.97,5.6349]
[1723420539218,5.6335,142.01,141.96,5.6353]
[1723420540722,11.7188,142.02,141.97,5.6349]
[1723420544533,23.37,142.0,141.98,5.6344]
[1723420547543,23.37,142.0,141.97,19.7216]
[1723420547739,23.37,142.0,141.99,5.6341]
[1723420548306,23.37,142.0,141.97,14.0867]
[1723420548517,23.37,142.0,141.97,19.7214]
[1723420548732,23.37,142.0,141.98,5.6343]
[1723420549419,23.37,142.0,141.97,19.7216]
[1723420550137,23.37,141.98,141.97,14.0867]
[1723420550820,23.37,141.98,141.96,5.6352]
[1723420552942,5.6331,142.02,141.98,5.6345]
[1723420553316,23.37,141.99,141.97,5.6349]
[1723420553821,23.37,141.99,141.96,19.7226]
[1723420554441,23.37,141.97,141.93,19.727]
[1723420554641,23.37,141.97,141.94,5.636]
[1723420555713,5.6349,141.98,141.94,5.636]
[1723420556026,11.69,141.95,141.94,5.636]
[1723420558046,11.69,141.95,141.9,14.0939]
[1723420558240,11.69,141.91,141.9,14.0939]
[1723420559637,5.6358,141.95,141.9,14.0939]
[1723420559872,11.69,141.91,141.9,19.7316]
[1723420560741,11.69,141.91,141.88,5.6385]
[1723420560913,11.69,141.89,141.85,7.35539082]
[1723420561112,11.69,141.89,141.83,14.1004]
[1723420561334,6.658,141.9,141.85,5.6395]
[1723420561635,5.6389,141.87,141.8,14.1041]
[1723420561816,11.69,141.83,141.82,5.6409]
[1723420562012,11.69,141.84,141.82,5.6409]